[Event "Titled Tuesday Blitz May 03 Late 2022"]
[White "Nozdrachev, Leonid"]
[Black "Korchmar, Vasiliy"]
[WhiteFideId "24113433"]
[BlackFideId "24131750"]
[WhiteElo "2242"]
[BlackElo "2370"]
[Result "1-0"]
[Round "04"]
[TimeControl "180+1"]
[Date "2022.05.03"]
[WhiteClock "0:00:03"]
[BlackClock "0:00:03"]

1. e4 {[%clk 0:03:00]}  c5 {[%clk 0:03:00]} 2. c3 {[%clk 0:02:59]}  Nf6 {[%clk 0:03:00]} 3. e5 {[%clk 0:02:58]}  Nd5 {[%clk 0:03:00]} 4. d4 {[%clk 0:02:57]}  cxd4 {[%clk 0:03:01]} 5. Nf3 {[%clk 0:02:57]}  e6 {[%clk 0:03:01]} 6. cxd4 {[%clk 0:02:56]}  d6 {[%clk 0:03:02]} 7. Bc4 {[%clk 0:02:56]}  Be7 {[%clk 0:03:02]} 8. O-O {[%clk 0:02:56]}  O-O {[%clk 0:03:02]} 9. Qe1 {[%clk 0:02:56]}  b6 {[%clk 0:03:00]} 10. Nc3 {[%clk 0:02:54]}  Nxc3 {[%clk 0:02:55]} 11. Qxc3 {[%clk 0:02:55]}  Bb7 {[%clk 0:02:51]} 12. Bf4 {[%clk 0:02:54]}  dxe5 {[%clk 0:02:42]} 13. Nxe5 {[%clk 0:02:47]}  Nd7 {[%clk 0:02:42]} 14. Rad1 {[%clk 0:02:41]}  Rc8 {[%clk 0:02:39]} 15. Qg3 {[%clk 0:02:40]}  Nf6 {[%clk 0:02:28]} 16. Be2 {[%clk 0:02:35]}  Rc2 {[%clk 0:02:14]} 17. Bh6 {[%clk 0:02:32]}  Ne8 {[%clk 0:02:14]} 18. Bd3 {[%clk 0:02:26]}  Rxb2 {[%clk 0:02:11]} 19. Qh3 {[%clk 0:01:54]}  f5 {[%clk 0:01:45]} 20. Bc1 {[%clk 0:01:50]}  Rb4 {[%clk 0:01:35]} 21. Bc4 {[%clk 0:01:47]}  Bd5 {[%clk 0:01:33]} 22. Bxd5 {[%clk 0:01:45]}  Qxd5 {[%clk 0:01:28]} 23. Ba3 {[%clk 0:01:40]}  Nf6 {[%clk 0:01:24]} 24. Bxb4 {[%clk 0:01:26]}  Bxb4 {[%clk 0:01:25]} 25. Rc1 {[%clk 0:01:25]}  Bd6 {[%clk 0:01:17]} 26. Qf3 {[%clk 0:01:13]}  Qxd4 {[%clk 0:00:55]} 27. Nc6 {[%clk 0:01:10]}  Qd5 {[%clk 0:00:39]} 28. Qxd5 {[%clk 0:01:08]}  Nxd5 {[%clk 0:00:40]} 29. Nxa7 {[%clk 0:01:06]}  Ra8 {[%clk 0:00:35]} 30. Rc8+ {[%clk 0:00:56]}  Rxc8 {[%clk 0:00:35]} 31. Nxc8 {[%clk 0:00:57]}  Bc5 {[%clk 0:00:36]} 32. Na7 {[%clk 0:00:50]}  Nc3 {[%clk 0:00:33]} 33. Re1 {[%clk 0:00:45]}  Kf7 {[%clk 0:00:30]} 34. Nc6 {[%clk 0:00:43]}  Kf6 {[%clk 0:00:17]} 35. Ra1 {[%clk 0:00:20]}  Ne4 {[%clk 0:00:15]} 36. Rf1 {[%clk 0:00:18]}  Nc3 {[%clk 0:00:15]} 37. Ra1 {[%clk 0:00:11]}  e5 {[%clk 0:00:15]} 38. Kf1 {[%clk 0:00:09]}  Ke6 {[%clk 0:00:14]} 39. a4 {[%clk 0:00:09]}  Kd5 {[%clk 0:00:12]} 40. a5 {[%clk 0:00:03]}  Kxc6 {[%clk 0:00:07]} 41. a6 {[%clk 0:00:03]}  b5 {[%clk 0:00:03]} 42. a7 {[%clk 0:00:04]}  Bxa7 {[%clk 0:00:04]} 43. Rxa7 {[%clk 0:00:05]}  b4 {[%clk 0:00:05]} 44. Ke1 {[%clk 0:00:04]}  b3 {[%clk 0:00:05]} 45. Ra3 {[%clk 0:00:03]}  Nb5 {[%clk 0:00:02]} 46. Rxb3 {[%clk 0:00:03]}  Nd4 {[%clk 0:00:02]} 47. Rh3 {[%clk 0:00:03]}  h6 {[%clk 0:00:02]} 48. Kf1 {[%clk 0:00:03]}  Kd5 {[%clk 0:00:02]} 49. Rg3 {[%clk 0:00:03]}  Ne6 {[%clk 0:00:02]} 50. Ra3 {[%clk 0:00:03]}  Kd6 {[%clk 0:00:02]} 51. Ra6+ {[%clk 0:00:03]}  Ke7 {[%clk 0:00:03]} 52. Ra7+ {[%clk 0:00:04]}  Kf6 {[%clk 0:00:03]} 53. Ra6 {[%clk 0:00:04]}  Kf7 {[%clk 0:00:03]} 54. g3 {[%clk 0:00:04]}  Kf6 {[%clk 0:00:03]} 55. Rb6 {[%clk 0:00:04]}  g6 {[%clk 0:00:03]} 56. Ra6 {[%clk 0:00:05]}  h5 {[%clk 0:00:04]} 57. Ra8 {[%clk 0:00:05]}  e4 {[%clk 0:00:04]} 58. Ra6 {[%clk 0:00:05]}  Ke5 {[%clk 0:00:04]} 59. Ra5+ {[%clk 0:00:05]}  Kf6 {[%clk 0:00:05]} 60. Ra6 {[%clk 0:00:05]}  Kf7 {[%clk 0:00:05]} 61. Rb6 {[%clk 0:00:05]}  Ng5 {[%clk 0:00:04]} 62. h4 {[%clk 0:00:04]}  Nf3 {[%clk 0:00:04]} 63. Ke2 {[%clk 0:00:04]}  Ne5 {[%clk 0:00:05]} 64. Ra6 {[%clk 0:00:04]}  Ng4 {[%clk 0:00:04]} 65. Ra7+ {[%clk 0:00:03]}  Kf6 {[%clk 0:00:04]} 66. Ra8 {[%clk 0:00:03]}  Kf7 {[%clk 0:00:04]} 67. Ra6 {[%clk 0:00:03]}  Kg7 {[%clk 0:00:04]} 68. Ra1 {[%clk 0:00:03]}  Kf6 {[%clk 0:00:04]} 69. Ra6+ {[%clk 0:00:03]}  Kg7 {[%clk 0:00:04]} 70. f3 {[%clk 0:00:03]}  exf3+ {[%clk 0:00:04]} 71. Kxf3 {[%clk 0:00:04]}  Kh6 {[%clk 0:00:01]} 72. Ra8 {[%clk 0:00:04]}  Ne5+ {[%clk 0:00:01]} 73. Kf4 {[%clk 0:00:04]}  Nd3+ {[%clk 0:00:02]} 74. Ke3 {[%clk 0:00:04]}  Nc5 {[%clk 0:00:02]} 75. Rh8+ {[%clk 0:00:04]}  Kg7 {[%clk 0:00:02]} 76. Rc8 {[%clk 0:00:05]}  Ne4 {[%clk 0:00:03]} 77. Kf3 {[%clk 0:00:05]}  Kh6 {[%clk 0:00:03]} 78. Rc7 {[%clk 0:00:05]}  Nf6 {[%clk 0:00:03]} 79. Ra7 {[%clk 0:00:04]}  Nd5 {[%clk 0:00:03]} 80. Ra8 {[%clk 0:00:04]}  Nf6 {[%clk 0:00:04]} 81. Ra5 {[%clk 0:00:04]}  Ne4 {[%clk 0:00:04]} 82. Kf4 {[%clk 0:00:04]}  Nf6 {[%clk 0:00:04]} 83. Ra6 {[%clk 0:00:04]}  Nd5+ {[%clk 0:00:04]} 84. Ke5 {[%clk 0:00:04]}  Ne3 {[%clk 0:00:03]} 85. Kf6 {[%clk 0:00:03]}  Ng4+ {[%clk 0:00:04]} 86. Kf7 {[%clk 0:00:03]}  Ne5+ {[%clk 0:00:04]} 87. Kg8 {[%clk 0:00:03]}  Ng4 {[%clk 0:00:02]} 88. Ra7 {[%clk 0:00:03]}  Nf6+ {[%clk 0:00:02]} 89. Kf7 {[%clk 0:00:03]}  Ng4 {[%clk 0:00:02]} 90. Ra6 {[%clk 0:00:03]}  Ne5+ {[%clk 0:00:02]} 91. Kg8 {[%clk 0:00:03]}  Ng4 {[%clk 0:00:02]} 92. Rb6 {[%clk 0:00:03]}  Ne5 {[%clk 0:00:02]} 93. Re6 {[%clk 0:00:02]}  Ng4 {[%clk 0:00:02]} 94. Re7 {[%clk 0:00:02]}  Nf6+ {[%clk 0:00:02]} 95. Kf7 {[%clk 0:00:02]}  Ng4 {[%clk 0:00:02]} 96. Re8 {[%clk 0:00:02]}  g5 {[%clk 0:00:02]} 97. Re6+ {[%clk 0:00:02]}  Kh7 {[%clk 0:00:02]} 98. hxg5 {[%clk 0:00:02]}  f4 {[%clk 0:00:02]} 99. g6+ {[%clk 0:00:02]}  Kh6 {[%clk 0:00:03]} 100. g7+ {[%clk 0:00:03]} 1-0


[Site "https://www.chess.com"]

[Event "Titled Tuesday Blitz May 03 Late 2022"]
[White "Omariev, Maksim"]
[Black "Smail, Benedict"]
[WhiteFideId "4193423"]
[BlackFideId "2050480"]
[WhiteElo "2524"]
[BlackElo "2070"]
[Result "1-0"]
[Round "04"]
[TimeControl "180+1"]
[Date "2022.05.03"]
[WhiteClock "0:00:17"]
[BlackClock "0:00:02"]

1. g4 {[%clk 0:03:00]}  d5 {[%clk 0:02:51]} 2. Bg2 {[%clk 0:03:01]}  c6 {[%clk 0:02:51]} 3. h3 {[%clk 0:03:01]}  Nf6 {[%clk 0:02:49]} 4. d4 {[%clk 0:03:01]}  Nbd7 {[%clk 0:02:40]} 5. Nf3 {[%clk 0:02:59]}  e6 {[%clk 0:02:38]} 6. Bf4 {[%clk 0:02:49]}  Nb6 {[%clk 0:02:38]} 7. Nbd2 {[%clk 0:02:45]}  Bd6 {[%clk 0:02:38]} 8. Ne5 {[%clk 0:02:42]}  h6 {[%clk 0:02:35]} 9. c3 {[%clk 0:02:31]}  Qc7 {[%clk 0:02:35]} 10. e3 {[%clk 0:02:10]}  Nbd7 {[%clk 0:02:34]} 11. Ndf3 {[%clk 0:02:01]}  b6 {[%clk 0:02:34]} 12. Qc2 {[%clk 0:01:50]}  Ba6 {[%clk 0:02:28]} 13. O-O-O {[%clk 0:01:49]}  c5 {[%clk 0:02:09]} 14. Kb1 {[%clk 0:01:49]}  cxd4 {[%clk 0:01:40]} 15. exd4 {[%clk 0:01:40]}  O-O-O {[%clk 0:01:40]} 16. Bh2 {[%clk 0:01:27]}  Rhf8 {[%clk 0:01:36]} 17. Rde1 {[%clk 0:01:23]}  Ne4 {[%clk 0:01:32]} 18. Nxd7 {[%clk 0:01:18]}  Qxd7 {[%clk 0:01:20]} 19. Ne5 {[%clk 0:01:03]}  Bxe5 {[%clk 0:01:21]} 20. Bxe5 {[%clk 0:01:04]}  Nf6 {[%clk 0:01:19]} 21. f4 {[%clk 0:00:55]}  Rg8 {[%clk 0:01:14]} 22. f5 {[%clk 0:00:41]}  Rde8 {[%clk 0:01:13]} 23. fxe6 {[%clk 0:00:40]}  Rxe6 {[%clk 0:01:10]} 24. Re3 {[%clk 0:00:33]}  Rge8 {[%clk 0:01:09]} 25. Rhe1 {[%clk 0:00:33]}  Qc6 {[%clk 0:00:51]} 26. Qf2 {[%clk 0:00:27]}  Bb5 {[%clk 0:00:19]} 27. Qf4 {[%clk 0:00:22]}  Kb7 {[%clk 0:00:17]} 28. h4 {[%clk 0:00:22]}  a5 {[%clk 0:00:15]} 29. g5 {[%clk 0:00:22]}  hxg5 {[%clk 0:00:16]} 30. hxg5 {[%clk 0:00:23]}  Nd7 {[%clk 0:00:13]} 31. Bxg7 {[%clk 0:00:19]}  Rxe3 {[%clk 0:00:12]} 32. Rxe3 {[%clk 0:00:20]}  Rxe3 {[%clk 0:00:10]} 33. Qxe3 {[%clk 0:00:20]}  Qg6+ {[%clk 0:00:10]} 34. Kc1 {[%clk 0:00:19]}  Qxg7 {[%clk 0:00:11]} 35. Bxd5+ {[%clk 0:00:19]}  Kc7 {[%clk 0:00:08]} 36. Qf4+ {[%clk 0:00:19]}  Kd8 {[%clk 0:00:06]} 37. Bxf7 {[%clk 0:00:18]}  Qf8 {[%clk 0:00:04]} 38. g6 {[%clk 0:00:18]}  Qg7 {[%clk 0:00:04]} 39. Qd6 {[%clk 0:00:18]}  Qh6+ {[%clk 0:00:03]} 40. Kc2 {[%clk 0:00:18]}  a4 {[%clk 0:00:02]} 41. b3 {[%clk 0:00:17]} 1-0


[Site "https://www.chess.com"]

[Event "Titled Tuesday Blitz May 03 Late 2022"]
[White "Piesik, Piotr"]
[Black "Andreikin, Dmitry"]
[WhiteFideId "1136194"]
[BlackFideId "4158814"]
[WhiteElo "2190"]
[BlackElo "2736"]
[Result "0-1"]
[Round "04"]
[TimeControl "180+1"]
[Date "2022.05.03"]
[WhiteClock "0:00:01"]
[BlackClock "0:00:05"]

1. Nf3 {[%clk 0:02:26]}  b6 {[%clk 0:02:59]} 2. g3 {[%clk 0:02:25]}  Bb7 {[%clk 0:02:59]} 3. Bg2 {[%clk 0:02:26]}  g6 {[%clk 0:02:59]} 4. O-O {[%clk 0:02:27]}  Bg7 {[%clk 0:03:00]} 5. c4 {[%clk 0:02:26]}  Nf6 {[%clk 0:03:00]} 6. Nc3 {[%clk 0:02:27]}  O-O {[%clk 0:02:59]} 7. d3 {[%clk 0:02:27]}  c5 {[%clk 0:02:55]} 8. e4 {[%clk 0:02:27]}  d6 {[%clk 0:02:55]} 9. Ne1 {[%clk 0:02:27]}  Nc6 {[%clk 0:02:51]} 10. f4 {[%clk 0:02:27]}  a6 {[%clk 0:02:49]} 11. Nc2 {[%clk 0:02:27]}  Nd7 {[%clk 0:02:49]} 12. Kh1 {[%clk 0:02:25]}  Qb8 {[%clk 0:02:45]} 13. g4 {[%clk 0:02:25]}  b5 {[%clk 0:02:44]} 14. Bd2 {[%clk 0:02:18]}  Nd4 {[%clk 0:02:36]} 15. Rb1 {[%clk 0:02:11]}  e6 {[%clk 0:02:31]} 16. Ne2 {[%clk 0:02:09]}  bxc4 {[%clk 0:02:28]} 17. dxc4 {[%clk 0:02:07]}  Nf6 {[%clk 0:02:16]} 18. Ncxd4 {[%clk 0:02:04]}  cxd4 {[%clk 0:02:15]} 19. Ng3 {[%clk 0:02:02]}  a5 {[%clk 0:02:02]} 20. g5 {[%clk 0:02:02]}  Nd7 {[%clk 0:02:03]} 21. f5 {[%clk 0:01:48]}  Be5 {[%clk 0:02:01]} 22. fxe6 {[%clk 0:01:45]}  fxe6 {[%clk 0:02:02]} 23. Qg4 {[%clk 0:01:45]}  Nc5 {[%clk 0:01:55]} 24. b4 {[%clk 0:01:37]}  Rxf1+ {[%clk 0:01:51]} 25. Nxf1 {[%clk 0:01:32]}  axb4 {[%clk 0:01:49]} 26. Bxb4 {[%clk 0:01:31]}  Bc8 {[%clk 0:01:44]} 27. Nd2 {[%clk 0:01:26]}  Qc7 {[%clk 0:01:42]} 28. a3 {[%clk 0:01:18]}  Bd7 {[%clk 0:01:40]} 29. Rf1 {[%clk 0:01:16]}  Nd3 {[%clk 0:01:19]} 30. Qf3 {[%clk 0:01:09]}  Nf4 {[%clk 0:01:17]} 31. Qg4 {[%clk 0:01:04]}  Rf8 {[%clk 0:01:13]} 32. Nf3 {[%clk 0:00:58]}  Nxg2 {[%clk 0:01:09]} 33. Kxg2 {[%clk 0:00:42]}  Qxc4 {[%clk 0:01:08]} 34. Rf2 {[%clk 0:00:40]}  Rf4 {[%clk 0:00:50]} 35. Nxe5 {[%clk 0:00:31]}  Rxg4+ {[%clk 0:00:47]} 36. Nxg4 {[%clk 0:00:32]}  e5 {[%clk 0:00:25]} 37. Nh6+ {[%clk 0:00:25]}  Kg7 {[%clk 0:00:25]} 38. Bxd6 {[%clk 0:00:19]}  Bf5 {[%clk 0:00:25]} 39. exf5 {[%clk 0:00:14]}  Qd5+ {[%clk 0:00:24]} 40. Kg3 {[%clk 0:00:14]}  Qxd6 {[%clk 0:00:24]} 41. fxg6 {[%clk 0:00:06]}  hxg6 {[%clk 0:00:08]} 42. Rf7+ {[%clk 0:00:05]}  Kh8 {[%clk 0:00:09]} 43. Ra7 {[%clk 0:00:01]}  Qc5 {[%clk 0:00:05]} 0-1


[Site "https://www.chess.com"]

[Event "Titled Tuesday Blitz May 03 Late 2022"]
[White "Rasulov, Vugar"]
[Black "Vusatiuk, Vladimir"]
[WhiteFideId "13402390"]
[BlackFideId "14118610"]
[WhiteElo "2560"]
[BlackElo "2157"]
[Result "1-0"]
[Round "04"]
[TimeControl "180+1"]
[Date "2022.05.03"]
[WhiteClock "0:00:12"]
[BlackClock "0:00:04"]

1. d4 {[%clk 0:03:00]}  Nf6 {[%clk 0:03:00]} 2. c4 {[%clk 0:03:01]}  e6 {[%clk 0:03:00]} 3. Nf3 {[%clk 0:03:01]}  a6 {[%clk 0:02:59]} 4. Nc3 {[%clk 0:03:01]}  d5 {[%clk 0:02:59]} 5. cxd5 {[%clk 0:02:54]}  exd5 {[%clk 0:03:00]} 6. Bf4 {[%clk 0:02:54]}  Be6 {[%clk 0:02:55]} 7. e3 {[%clk 0:02:54]}  Bd6 {[%clk 0:02:55]} 8. Bxd6 {[%clk 0:02:50]}  Qxd6 {[%clk 0:02:54]} 9. Qb3 {[%clk 0:02:49]}  Ra7 {[%clk 0:02:39]} 10. g3 {[%clk 0:02:49]}  O-O {[%clk 0:02:39]} 11. Bg2 {[%clk 0:02:49]}  Nbd7 {[%clk 0:02:32]} 12. O-O {[%clk 0:02:49]}  c6 {[%clk 0:01:59]} 13. Rac1 {[%clk 0:02:49]}  b5 {[%clk 0:01:56]} 14. Ne2 {[%clk 0:02:43]}  Ne4 {[%clk 0:01:44]} 15. Nf4 {[%clk 0:02:42]}  Nb6 {[%clk 0:01:36]} 16. Qc2 {[%clk 0:02:36]}  Rc8 {[%clk 0:01:29]} 17. Nd3 {[%clk 0:02:18]}  Bf5 {[%clk 0:01:22]} 18. Nh4 {[%clk 0:02:17]}  Bd7 {[%clk 0:01:16]} 19. Nc5 {[%clk 0:02:16]}  Nf6 {[%clk 0:01:10]} 20. b3 {[%clk 0:02:16]}  a5 {[%clk 0:01:07]} 21. Nf3 {[%clk 0:02:16]}  a4 {[%clk 0:01:06]} 22. Ne5 {[%clk 0:02:15]}  Be8 {[%clk 0:01:04]} 23. Bh3 {[%clk 0:02:10]}  Rca8 {[%clk 0:00:59]} 24. Qc3 {[%clk 0:01:53]}  axb3 {[%clk 0:00:58]} 25. axb3 {[%clk 0:01:54]}  h6 {[%clk 0:00:47]} 26. Bf5 {[%clk 0:01:50]}  Ra2 {[%clk 0:00:40]} 27. Bb1 {[%clk 0:01:49]}  Ra1 {[%clk 0:00:40]} 28. Bh7+ {[%clk 0:01:47]}  Kxh7 {[%clk 0:00:40]} 29. Rxa1 {[%clk 0:01:47]}  Rc8 {[%clk 0:00:35]} 30. Ra6 {[%clk 0:01:47]}  Nbd7 {[%clk 0:00:24]} 31. Ncxd7 {[%clk 0:01:43]}  Bxd7 {[%clk 0:00:24]} 32. Nxd7 {[%clk 0:01:39]}  Qxd7 {[%clk 0:00:21]} 33. Rfa1 {[%clk 0:01:38]}  Qh3 {[%clk 0:00:19]} 34. Qd3+ {[%clk 0:01:33]}  g6 {[%clk 0:00:19]} 35. Qf1 {[%clk 0:01:32]}  Qf5 {[%clk 0:00:18]} 36. Ra7 {[%clk 0:01:33]}  Kg7 {[%clk 0:00:18]} 37. Re7 {[%clk 0:01:26]}  Ne4 {[%clk 0:00:16]} 38. Raa7 {[%clk 0:01:26]}  Rf8 {[%clk 0:00:17]} 39. Kg2 {[%clk 0:01:12]}  h5 {[%clk 0:00:16]} 40. h4 {[%clk 0:01:05]}  g5 {[%clk 0:00:12]} 41. Re5 {[%clk 0:01:02]}  Qg4 {[%clk 0:00:10]} 42. Rxg5+ {[%clk 0:00:40]}  Nxg5 {[%clk 0:00:10]} 43. hxg5 {[%clk 0:00:41]}  Qxg5 {[%clk 0:00:10]} 44. Qe2 {[%clk 0:00:30]}  Re8 {[%clk 0:00:10]} 45. Qf3 {[%clk 0:00:30]}  Qg6 {[%clk 0:00:10]} 46. Rc7 {[%clk 0:00:25]}  h4 {[%clk 0:00:10]} 47. g4 {[%clk 0:00:25]}  Re6 {[%clk 0:00:09]} 48. Qh3 {[%clk 0:00:19]}  Qg5 {[%clk 0:00:07]} 49. Rc8 {[%clk 0:00:14]}  Re4 {[%clk 0:00:07]} 50. f4 {[%clk 0:00:14]}  Qh6 {[%clk 0:00:07]} 51. g5 {[%clk 0:00:12]}  Qh5 {[%clk 0:00:07]} 52. Kf2 {[%clk 0:00:13]}  b4 {[%clk 0:00:05]} 53. Rd8 {[%clk 0:00:13]}  Re6 {[%clk 0:00:05]} 54. Qf5 {[%clk 0:00:13]}  h3 {[%clk 0:00:04]} 55. Kg1 {[%clk 0:00:10]}  h2+ {[%clk 0:00:04]} 56. Kh1 {[%clk 0:00:11]}  Rxe3 {[%clk 0:00:04]} 57. Qf6+ {[%clk 0:00:11]}  Kh7 {[%clk 0:00:04]} 58. Rh8# {[%clk 0:00:12]} 1-0


[Site "https://www.chess.com"]

[Event "Titled Tuesday Blitz May 03 Late 2022"]
[White "Reprintsev, Alexander"]
[Black "Melikhov, Evgeny V."]
[WhiteFideId "14100541"]
[BlackFideId "4122046"]
[WhiteElo "2108"]
[BlackElo "1931"]
[Result "1-0"]
[Round "04"]
[TimeControl "180+1"]
[Date "2022.05.03"]
[WhiteClock "0:00:30"]
[BlackClock "0:00:11"]

1. e4 {[%clk 0:02:45]}  e5 {[%clk 0:02:58]} 2. f4 {[%clk 0:02:44]}  Bc5 {[%clk 0:02:55]} 3. Nf3 {[%clk 0:02:44]}  d6 {[%clk 0:02:55]} 4. c3 {[%clk 0:02:43]}  Nf6 {[%clk 0:02:49]} 5. fxe5 {[%clk 0:02:43]}  dxe5 {[%clk 0:02:47]} 6. Nxe5 {[%clk 0:02:43]}  O-O {[%clk 0:02:33]} 7. d4 {[%clk 0:02:43]}  Bd6 {[%clk 0:02:18]} 8. Nxf7 {[%clk 0:02:42]}  Rxf7 {[%clk 0:02:16]} 9. Bc4 {[%clk 0:02:42]}  Nxe4 {[%clk 0:02:02]} 10. Bxf7+ {[%clk 0:02:39]}  Kxf7 {[%clk 0:02:01]} 11. Qh5+ {[%clk 0:02:39]}  Kf8 {[%clk 0:01:49]} 12. O-O+ {[%clk 0:02:37]}  Nf6 {[%clk 0:01:48]} 13. Qxh7 {[%clk 0:02:35]}  Be6 {[%clk 0:01:39]} 14. Bg5 {[%clk 0:02:28]}  Nd7 {[%clk 0:01:37]} 15. Nd2 {[%clk 0:02:27]}  Bg8 {[%clk 0:01:22]} 16. Qh4 {[%clk 0:02:22]}  Qe8 {[%clk 0:00:53]} 17. Rae1 {[%clk 0:02:21]}  Qg6 {[%clk 0:00:53]} 18. Bxf6 {[%clk 0:02:03]}  Nxf6 {[%clk 0:00:52]} 19. Ne4 {[%clk 0:02:03]}  Be7 {[%clk 0:00:45]} 20. Qf4 {[%clk 0:01:56]}  Rc8 {[%clk 0:00:33]} 21. b3 {[%clk 0:01:53]}  Bf7 {[%clk 0:00:32]} 22. Nc5 {[%clk 0:01:47]}  Bxc5 {[%clk 0:00:28]} 23. dxc5 {[%clk 0:01:47]}  Bd5 {[%clk 0:00:24]} 24. Rf2 {[%clk 0:01:34]}  Re8 {[%clk 0:00:21]} 25. Rxe8+ {[%clk 0:01:33]}  Qxe8 {[%clk 0:00:21]} 26. Qd2 {[%clk 0:01:05]}  Qe4 {[%clk 0:00:20]} 27. c4 {[%clk 0:01:01]}  Bc6 {[%clk 0:00:19]} 28. Qd8+ {[%clk 0:00:59]}  Kf7 {[%clk 0:00:19]} 29. Qxc7+ {[%clk 0:00:59]}  Kg8 {[%clk 0:00:20]} 30. Qd8+ {[%clk 0:00:56]}  Kh7 {[%clk 0:00:20]} 31. Qd1 {[%clk 0:00:54]}  a5 {[%clk 0:00:17]} 32. Qc2 {[%clk 0:00:53]}  Qxc2 {[%clk 0:00:16]} 33. Rxc2 {[%clk 0:00:53]}  Kg6 {[%clk 0:00:16]} 34. a3 {[%clk 0:00:52]}  Ne4 {[%clk 0:00:16]} 35. b4 {[%clk 0:00:51]}  axb4 {[%clk 0:00:16]} 36. axb4 {[%clk 0:00:51]}  Kf5 {[%clk 0:00:15]} 37. Ra2 {[%clk 0:00:37]}  Ke5 {[%clk 0:00:14]} 38. Ra7 {[%clk 0:00:31]}  Kd4 {[%clk 0:00:14]} 39. b5 {[%clk 0:00:31]}  Bd7 {[%clk 0:00:14]} 40. c6 {[%clk 0:00:31]}  bxc6 {[%clk 0:00:11]} 41. Rxd7+ {[%clk 0:00:31]}  Kc5 {[%clk 0:00:11]} 42. bxc6 {[%clk 0:00:30]}  Kxc6 {[%clk 0:00:11]} 43. Rxg7 {[%clk 0:00:30]} 1-0


[Site "https://www.chess.com"]

[Event "Titled Tuesday Blitz May 03 Late 2022"]
[White "Romero Ruscalleda, Josep"]
[Black "Khabinets, Ivan"]
[WhiteFideId "2231859"]
[BlackFideId "14115980"]
[WhiteElo "2269"]
[BlackElo "2114"]
[Result "0-1"]
[Round "04"]
[TimeControl "180+1"]
[Date "2022.05.03"]
[WhiteClock "0:00:01"]
[BlackClock "0:01:39"]

1. e4 {[%clk 0:03:00]}  c5 {[%clk 0:02:59]} 2. c3 {[%clk 0:03:00]}  d6 {[%clk 0:03:00]} 3. d4 {[%clk 0:03:00]}  Nf6 {[%clk 0:03:01]} 4. Bd3 {[%clk 0:02:59]}  g6 {[%clk 0:03:00]} 5. dxc5 {[%clk 0:02:58]}  dxc5 {[%clk 0:02:59]} 6. Qe2 {[%clk 0:02:57]}  Nc6 {[%clk 0:02:59]} 7. Nf3 {[%clk 0:02:55]}  Bg7 {[%clk 0:02:58]} 8. O-O {[%clk 0:02:54]}  O-O {[%clk 0:02:58]} 9. h3 {[%clk 0:02:54]}  Qc7 {[%clk 0:02:57]} 10. e5 {[%clk 0:02:49]}  Nd5 {[%clk 0:02:58]} 11. Re1 {[%clk 0:02:48]}  Rd8 {[%clk 0:02:52]} 12. Na3 {[%clk 0:02:45]}  a6 {[%clk 0:02:49]} 13. Bd2 {[%clk 0:02:35]}  b5 {[%clk 0:02:47]} 14. Rad1 {[%clk 0:02:34]}  c4 {[%clk 0:02:46]} 15. Bb1 {[%clk 0:02:34]}  h6 {[%clk 0:02:45]} 16. Nc2 {[%clk 0:02:30]}  e6 {[%clk 0:02:39]} 17. Ncd4 {[%clk 0:02:27]}  Nxd4 {[%clk 0:02:39]} 18. Nxd4 {[%clk 0:02:27]}  Bb7 {[%clk 0:02:40]} 19. Qg4 {[%clk 0:02:09]}  Qe7 {[%clk 0:02:21]} 20. Be4 {[%clk 0:02:00]}  Rac8 {[%clk 0:02:19]} 21. Qf3 {[%clk 0:01:56]}  g5 {[%clk 0:02:10]} 22. Bc1 {[%clk 0:01:50]}  Bxe5 {[%clk 0:02:07]} 23. Bxd5 {[%clk 0:01:42]}  Bxd5 {[%clk 0:02:06]} 24. Qh5 {[%clk 0:00:57]}  Qf6 {[%clk 0:01:57]} 25. Re3 {[%clk 0:00:28]}  Qg7 {[%clk 0:01:52]} 26. Rde1 {[%clk 0:00:16]}  Bf6 {[%clk 0:01:52]} 27. Nf3 {[%clk 0:00:15]}  Qg6 {[%clk 0:01:46]} 28. Qxg6+ {[%clk 0:00:13]}  fxg6 {[%clk 0:01:47]} 29. Ne5 {[%clk 0:00:11]}  Kg7 {[%clk 0:01:47]} 30. g3 {[%clk 0:00:10]}  a5 {[%clk 0:01:44]} 31. f4 {[%clk 0:00:09]}  gxf4 {[%clk 0:01:44]} 32. gxf4 {[%clk 0:00:09]}  Kh7 {[%clk 0:01:41]} 33. Ng4 {[%clk 0:00:09]}  Bg7 {[%clk 0:01:40]} 34. Kf2 {[%clk 0:00:07]}  b4 {[%clk 0:01:40]} 35. Bd2 {[%clk 0:00:06]}  Rb8 {[%clk 0:01:39]} 36. Ne5 {[%clk 0:00:03]}  Rf8 {[%clk 0:01:39]} 37. Kg3 {[%clk 0:00:02]}  Rb7 {[%clk 0:01:38]} 38. cxb4 {[%clk 0:00:02]}  axb4 {[%clk 0:01:38]} 39. b3 {[%clk 0:00:02]}  c3 {[%clk 0:01:38]} 40. Bc1 {[%clk 0:00:03]}  Ra7 {[%clk 0:01:39]} 41. R3e2 {[%clk 0:00:02]}  g5 {[%clk 0:01:39]} 42. fxg5 {[%clk 0:00:02]}  hxg5 {[%clk 0:01:40]} 43. Bxg5 {[%clk 0:00:01]}  Rf5 {[%clk 0:01:39]} 0-1


[Site "https://www.chess.com"]

[Event "Titled Tuesday Blitz May 03 Late 2022"]
[White "Rosen, Eric"]
[Black "Przybylski, Wojciech"]
[WhiteFideId "2032562"]
[BlackFideId "1117599"]
[WhiteElo "2362"]
[BlackElo "2133"]
[Result "1-0"]
[Round "04"]
[TimeControl "180+1"]
[Date "2022.05.03"]
[WhiteClock "0:00:30"]
[BlackClock "0:00:06"]

1. d4 {[%clk 0:02:54]}  Nf6 {[%clk 0:02:58]} 2. Bf4 {[%clk 0:02:53]}  e6 {[%clk 0:02:56]} 3. e3 {[%clk 0:02:53]}  Bd6 {[%clk 0:02:54]} 4. Bg3 {[%clk 0:02:52]}  O-O {[%clk 0:02:53]} 5. Nd2 {[%clk 0:02:52]}  b6 {[%clk 0:02:53]} 6. Qf3 {[%clk 0:02:48]}  Nc6 {[%clk 0:02:48]} 7. c3 {[%clk 0:02:40]}  Bb7 {[%clk 0:02:48]} 8. Bd3 {[%clk 0:02:39]}  Qc8 {[%clk 0:02:39]} 9. e4 {[%clk 0:02:36]}  e5 {[%clk 0:02:34]} 10. d5 {[%clk 0:02:26]}  Ne7 {[%clk 0:02:34]} 11. Bh4 {[%clk 0:02:18]}  Ne8 {[%clk 0:02:15]} 12. Nc4 {[%clk 0:01:58]}  Ng6 {[%clk 0:02:14]} 13. Qg4 {[%clk 0:01:40]}  c6 {[%clk 0:00:54]} 14. Ne3 {[%clk 0:01:24]}  Nf4 {[%clk 0:00:35]} 15. O-O-O {[%clk 0:01:08]}  cxd5 {[%clk 0:00:30]} 16. exd5 {[%clk 0:01:04]}  Nxd3+ {[%clk 0:00:25]} 17. Rxd3 {[%clk 0:01:04]}  Ba6 {[%clk 0:00:22]} 18. Rd2 {[%clk 0:00:45]}  Bc5 {[%clk 0:00:21]} 19. Nf5 {[%clk 0:00:41]}  Kh8 {[%clk 0:00:09]} 20. Nf3 {[%clk 0:00:34]}  d6 {[%clk 0:00:07]} 21. Be7 {[%clk 0:00:30]}  Rg8 {[%clk 0:00:06]} 22. Ng5 {[%clk 0:00:30]} 1-0


[Site "https://www.chess.com"]